fUSD/lending_fUSD_20240708
["ID","MTS","AMOUNT","RATE_DAILY","PERIOD"]
[331513998,1720445253344,-979.51,0.0005452,120]
[331513999,1720445253440,-5000.69,0.0005452,120]
[331514000,1720445253530,-1089.79,0.0005452,120]
[331514001,1720445253621,-602.11,0.0005452,120]
[331514002,1720445253711,-3962.26,0.0005452,120]
[331514003,1720445253799,-816.01,0.0005452,120]
[331514004,1720445253889,-5967.11,0.0005452,120]
[331514005,1720445253981,-952.17,0.0005452,120]
[331514006,1720445254074,-3856.8,0.0005452,120]
[331514007,1720445254171,-1444.4,0.0005452,120]
[331514008,1720445254267,-4328.98,0.0005452,120]
[331514009,1720445254364,-1667.53,0.0005452,120]
[331514010,1720445254462,-602.68,0.0005452,120]
[331514011,1720445254558,-4918.52,0.0005452,120]
[331514012,1720445254655,-1665.81,0.0005452,120]
[331514013,1720445254753,-1343.01,0.0005452,120]
[331514014,1720445255038,-3737.99,0.0005452,120]
[331514015,1720445255132,-681.78,0.0005452,120]
[331514016,1720445255222,-1892.85,0.0005452,120]
[331514017,1720445255314,-2033.08,0.0005452,120]
[331514018,1720445255408,-2432.96,0.0005452,120]
[331514019,1720445255502,-8334.2,0.0005452,120]
[331514020,1720445255597,-2303.71,0.0005452,120]
[331514021,1720445255694,-500.0,0.0005452,120]
[331514022,1720445255785,-7113.69,0.0005452,120]
[331514023,1720445255873,-2372.86,0.0005452,120]
[331514024,1720445255964,-6365.6,0.0005452,120]
[331514025,1720445256054,-3895.56,0.0005452,120]
[331514026,1720445256144,-4028.67,0.0005452,120]
[331514027,1720445256236,-2932.06,0.0005452,120]
[331514028,1720445256325,-9769.22,0.0005452,120]
[331514029,1720445256417,-3721.64,0.0005452,120]
[331514030,1720445256506,-4737.12,0.0005452,120]
[331514031,1720445256601,-579.46,0.0005452,120]
[331514032,1720445256697,-1491.25,0.0005452,120]
[331514033,1720445256788,-1519.45,0.0005452,120]
[331514034,1720445256881,-9789.62,0.0005452,120]
[331514035,1720445256970,-5134.91,0.0005452,120]
[331514036,1720445257057,-2497.28,0.0005452,120]
[331514037,1720445257141,-506.61,0.0005452,120]
[331514038,1720445257224,-18403.09,0.0005452,120]
[331514039,1720445257311,-552.8,0.0005452,120]
[331514040,1720445257401,-1198.7,0.0005452,120]
[331514041,1720445257487,-1667.87,0.0005452,120]
[331514042,1720445257575,-14120.27,0.0005452,120]
[331514043,1720445257660,-5150.8,0.0005452,120]
[331514044,1720445257750,-8496.48,0.0005452,120]
[331514045,1720445257838,-666.9,0.0005452,120]
[331514046,1720445257929,-500.0,0.0005452,120]
[331514047,1720445258016,-77163.49,0.0005452,120]
[331514048,1720445258108,-1701.37,0.0005452,120]
[331514049,1720445258210,-1695.49,0.0005452,120]
[331514050,1720445258311,-3671.69,0.0005452,120]
[331514051,1720445258404,-43789.77,0.0005452,120]
[331514052,1720445258494,-5882.08,0.0005452,120]
[331514053,1720445258583,-744.56,0.0005452,120]
[331514054,1720445258674,-4253.18,0.0005452,120]
[331514055,1720445258767,-2648.44,0.0005452,120]
[331514056,1720445258854,-2191.17,0.0005452,120]
[331514057,1720445258941,-4023.3,0.0005452,120]
[331514058,1720445259029,-1885.58,0.0005452,120]
[331514059,1720445259120,-5732.02,0.0005452,120]
[331514060,1720445259215,-20208.54,0.0005452,120]
[331514061,1720445259308,-3467.68,0.0005452,120]
[331514062,1720445259408,-3285.94,0.0005452,120]
[331514063,1720445259505,-843.34,0.0005452,120]
[331514064,1720445259598,-4518.2,0.0005452,120]
[331514065,1720445259697,-579.73,0.0005452,120]
[331514066,1720445259791,-7921.19,0.0005452,120]
[331514067,1720445259893,-2995.09,0.0005452,120]
[331514068,1720445259987,-521.56,0.0005452,120]
[331514069,1720445260086,-4816.6,0.0005452,120]
[331514070,1720445260183,-500.0,0.0005452,120]
[331514071,1720445260283,-5616.29,0.0005452,120]
[331514072,1720445260381,-4754.74,0.0005452,120]
[331514073,1720445260482,-2818.99,0.0005452,120]
[331514074,1720445260579,-3610.51,0.0005452,120]
[331514075,1720445260678,-2101.17,0.0005452,120]
[331514076,1720445260786,-7384.37,0.0005452,120]
[331514077,1720445260890,-13611.45,0.0005452,120]
[331514078,1720445260988,-500.0,0.0005452,120]
[331514079,1720445261083,-965.22,0.0005452,120]
[331514080,1720445261178,-547.56,0.0005452,120]
[331514081,1720445261271,-500.0,0.0005452,120]
[331514082,1720445261363,-583.78,0.0005452,120]
[331514083,1720445261457,-3854.26,0.0005452,120]
[331514084,1720445261543,-500.0,0.0005452,120]
[331514085,1720445261629,-10162.8,0.0005452,120]
[331514086,1720445261717,-938.43,0.0005452,120]
[331514087,1720445261807,-1124.37,0.0005452,120]
[331514088,1720445261893,-4983.01,0.0005452,120]
[331514089,1720445261982,-5118.07,0.0005452,120]
[331514090,1720445262071,-2432.5,0.0005452,120]
[331514091,1720445262163,-5565.77,0.0005452,120]
[331514092,1720445262256,-2686.57,0.0005452,120]
[331514093,1720445262345,-524.96,0.0005452,120]
[331514094,1720445262432,-500.0,0.0005452,120]
[331514095,1720445262516,-1454.12,0.0005452,120]
[331514096,1720445262599,-5036.27,0.0005452,120]
[331514097,1720445262688,-1067.33,0.0005452,120]
[331514098,1720445262778,-500.0,0.0005452,120]
[331514099,1720445262872,-1767.38,0.0005452,120]
[331514100,1720445262962,-5646.1,0.0005452,120]
[331514101,1720445263046,-2304.81,0.0005452,120]
[331514102,1720445263144,-4701.07,0.0005452,120]
[331514103,1720445263245,-9047.3,0.0005452,120]
[331514104,1720445263348,-4919.53,0.0005452,120]
[331514105,1720445263436,-1659.74,0.0005452,120]
[331514106,1720445263525,-1525.81,0.0005452,120]
[331514107,1720445263619,-2133.05,0.0005452,120]
[331514108,1720445263710,-7680.57,0.0005452,120]
[331514109,1720445263803,-3352.13,0.0005452,120]
[331514110,1720445263892,-4421.49,0.0005452,120]
[331514111,1720445263982,-1759.96,0.0005452,120]
[331514112,1720445264074,-3903.92,0.0005452,120]
[331514113,1720445264166,-500.0,0.0005452,120]
[331514114,1720445264260,-1631.9,0.0005452,120]
[331514115,1720445264353,-3833.49,0.0005452,120]
[331514116,1720445264447,-5951.51,0.0005452,120]
[331514117,1720445264774,-5146.59,0.0005452,120]
[331514118,1720445264870,-2176.54,0.0005452,120]
[331514119,1720445264966,-6347.68,0.0005452,120]
[331514120,1720445265064,-1088.69,0.0005452,120]
[331514121,1720445265164,-23579.31,0.0005452,120]
[331514122,1720445265268,-500.0,0.0005452,120]
[331514123,1720445265369,-3966.4,0.0005452,120]
[331514124,1720445265465,-2068.28,0.0005452,120]
[331514125,1720445265564,-2578.3,0.0005452,120]
[331514126,1720445265661,-3921.63,0.0005452,120]
[331514127,1720445265759,-58243.57,0.0005452,120]
[331514128,1720445265856,-508.44,0.0005452,120]
[331514129,1720445265956,-627.12,0.0005452,120]
[331514130,1720445266054,-24232.54,0.0005452,120]
[331514131,1720445266152,-552.36,0.0005452,120]
[331514132,1720445266255,-5320.57,0.0005452,120]
[331514133,1720445266353,-6752.46,0.0005452,120]
[331514134,1720445266453,-623.17,0.0005452,120]
[331514135,1720445266556,-695.92,0.0005452,120]
[331514136,1720445266650,-2080.87,0.0005452,120]
[331514137,1720445266745,-6849.11,0.0005452,120]
[331514138,1720445266839,-1687.12,0.0005452,120]
[331514139,1720445266934,-1101.67,0.0005452,120]
[331514140,1720445267040,-741.08,0.0005452,120]
[331514141,1720445267139,-6100.12,0.0005452,120]
[331514142,1720445267238,-1353.36,0.0005452,120]
[331514143,1720445267334,-500.0,0.0005452,120]
[331514144,1720445267425,-6271.45,0.0005452,120]
[331514145,1720445267520,-2621.09,0.0005452,120]
[331514146,1720445267616,-2109.31,0.0005452,120]
[331514147,1720445267709,-12321.64,0.0005452,120]
[331514148,1720445267800,-538.98,0.0005452,120]
[331514149,1720445267891,-5668.6,0.0005452,120]
[331514150,1720445267985,-6141.18,0.0005452,120]
[331514151,1720445268080,-500.0,0.0005452,120]
[331514152,1720445268189,-768.98,0.0005452,120]
[331514153,1720445268296,-639.8,0.0005452,120]
[331514154,1720445268394,-1783.66,0.0005452,120]
[331514155,1720445268490,-1148.58,0.0005452,120]
[331514156,1720445268586,-1046.64,0.0005452,120]
[331514157,1720445268681,-500.0,0.0005452,120]
[331514158,1720445268777,-2383.64,0.0005452,120]
[331514159,1720445268875,-1380.83,0.0005452,120]
[331514160,1720445268977,-2726.39,0.0005452,120]
[331514161,1720445269073,-1348.55,0.0005452,120]
[331514162,1720445269174,-646.48,0.0005452,120]
[331514163,1720445269281,-5858.28,0.0005452,120]
[331514164,1720445269392,-3087.04,0.0005452,120]
[331514165,1720445269493,-768.16,0.0005452,120]
[331514166,1720445269591,-1098.42,0.0005452,120]
[331514167,1720445269691,-1151.32,0.0005452,120]
[331514168,1720445269792,-28264.79,0.0005452,120]
[331514169,1720445269885,-403.51415637,0.0005452,120]
[331514170,1720445269978,-1188.45,0.0005452,120]
[331514171,1720445270071,-3804.3,0.0005452,120]
[331514172,1720445270164,-634.13,0.0005452,120]
[331514173,1720445270256,-1074.63,0.0005452,120]
[331514174,1720445270350,-972.69,0.0005452,120]
[331514175,1720445270443,-1971.31,0.0005452,120]
[331514176,1720445270544,-5641.11,0.0005452,120]
[331514177,1720445270642,-652.19,0.0005452,120]
[331514178,1720445270736,-500.0,0.0005452,120]
[331514179,1720445270827,-1216.89,0.0005452,120]
[331514180,1720445270921,-500.0,0.0005452,120]
[331514181,1720445271014,-1765.23,0.0005452,120]
[331514182,1720445271109,-5055.86,0.0005452,120]
[331514183,1720445271204,-500.0,0.0005452,120]
[331514184,1720445271302,-711.2,0.0005452,120]
[331514185,1720445271400,-2570.12,0.0005452,120]
[331514186,1720445271499,-2420.66,0.0005452,120]
[331514187,1720445271595,-2264.16,0.0005452,120]
[331514188,1720445271687,-672.24,0.0005452,120]
[331514189,1720445271775,-3711.44,0.0005452,120]
[331514190,1720445271863,-3195.91,0.0005452,120]
[331514191,1720445271952,-2590.75,0.0005452,120]
[331514192,1720445272037,-822.01,0.0005452,120]
[331514193,1720445272124,-3178.37,0.0005452,120]
[331514194,1720445272210,-1501.03,0.0005452,120]
[331514195,1720445272293,-4176.17,0.0005452,120]
[331514196,1720445272379,-4652.58,0.0005452,120]
[331514197,1720445272461,-1039.34,0.0005452,120]
[331514198,1720445272544,-607.4,0.0005452,120]
[331514199,1720445272629,-517.37,0.0005452,120]
[331514200,1720445272717,-724.29,0.0005452,120]
[331514201,1720445272803,-1620.57,0.0005452,120]
[331514202,1720445272886,-1793.43,0.0005452,120]
[331514203,1720445272973,-12165.5,0.0005452,120]
[331514204,1720445273056,-976.96,0.0005452,120]
[331514205,1720445273161,-2857.78,0.0005452,120]
[331514206,1720445273264,-935.81,0.0005452,120]
[331514207,1720445273364,-794.19,0.0005452,120]
[331514208,1720445273454,-1096.71,0.0005452,120]
[331514209,1720445273544,-812.1,0.0005452,120]
[331514210,1720445273634,-2680.32,0.0005452,120]
[331514211,1720445273724,-1019.65,0.0005452,120]
[331514212,1720445273813,-329.22274448,0.0005452,120]
[331514213,1720445273903,-7204.83,0.0005452,120]
[331514214,1720445273994,-1152.98,0.0005452,120]
[331514215,1720445274087,-2326.97,0.0005452,120]
[331514216,1720445274179,-2038.8,0.0005452,120]
[331514217,1720445274272,-1237.99,0.0005452,120]
[331514218,1720445274366,-671.15,0.0005452,120]
[331514219,1720445274461,-507.99,0.0005452,120]
[331514220,1720445274557,-943.16,0.0005452,120]
[331514221,1720445274650,-5931.18,0.0005452,120]
[331514222,1720445275000,-4626.82,0.0005452,120]
[331514223,1720445275098,-2327.97,0.0005452,120]
[331514224,1720445275199,-1802.66,0.0005452,120]
[331514225,1720445275299,-789.69,0.0005452,120]
[331514226,1720445275397,-2045.63,0.0005452,120]
[331514227,1720445275492,-2179.21,0.0005452,120]
[331514228,1720445275585,-679.68,0.0005452,120]
[331514229,1720445275679,-5851.04,0.0005452,120]
[331514230,1720445275779,-790.26,0.0005452,120]
[331514231,1720445275879,-3857.14,0.0005452,120]
[331514232,1720445275979,-918.0,0.0005452,120]
[331514233,1720445276074,-1071.27,0.0005452,120]
[331514234,1720445276166,-500.0,0.0005452,120]
[331514235,1720445276264,-9335.91,0.0005452,120]
[331514236,1720445276361,-971.7,0.0005452,120]
[331514237,1720445276459,-1080.21,0.0005452,120]
[331514238,1720445276555,-1237.8,0.0005452,120]
[331514239,1720445276645,-500.0,0.0005452,120]
[331514240,1720445276736,-4880.04,0.0005452,120]
[331514241,1720445276824,-836.04,0.0005452,120]
[331514242,1720445276909,-2472.65,0.0005452,120]
[331514243,1720445277003,-1021.84,0.0005452,120]
[331514244,1720445277093,-550.11,0.0005452,120]
[331514245,1720445277188,-500.0,0.0005452,120]
[331514246,1720445277278,-1033.51,0.0005452,120]
[331514247,1720445277368,-213.52250093,0.0005452,120]
[331514248,1720445277461,-820.16,0.0005452,120]
[331514249,1720445277559,-1695.51,0.0005452,120]
[331514250,1720445277658,-511.6,0.0005452,120]
[331514251,1720445277757,-3132.94,0.0005452,120]
[331514252,1720445277857,-1913.66,0.0005452,120]
[331514253,1720445277956,-4157.78,0.0005452,120]
[331514254,1720445278054,-652.08,0.0005452,120]
[331514255,1720445278163,-1698.07,0.0005452,120]
[331514256,1720445278281,-637.31,0.0005452,120]
[331514257,1720445278388,-572.94,0.0005452,120]
[331514258,1720445278488,-3335.79,0.0005452,120]
[331514259,1720445278581,-1910.14,0.0005452,120]
[331514260,1720445278675,-2108.8,0.0005452,120]
[331514261,1720445278772,-694.53,0.0005452,120]
[331514262,1720445278867,-1154.16,0.0005452,120]
[331514263,1720445278962,-1564.34,0.0005452,120]
[331514264,1720445279054,-2059.4,0.0005452,120]
[331514265,1720445279150,-3033.38,0.0005452,120]
[331514266,1720445279242,-294.64603521,0.0005452,120]
[331514267,1720445279337,-989.58,0.0005452,120]
[331514268,1720445279434,-2399.84,0.0005452,120]
[331514269,1720445279527,-500.0,0.0005452,120]
[331514270,1720445279620,-1672.29,0.0005452,120]
[331514271,1720445279712,-286.15834068,0.0005452,120]
[331514272,1720445279807,-1604.31,0.0005452,120]
[331514273,1720445279898,-500.0,0.0005452,120]
[331514274,1720445279988,-500.0,0.0005452,120]
[331514275,1720445280081,-2417.35,0.0005452,120]
[331514276,1720445280182,-1416.43,0.0005452,120]
[331514277,1720445280306,-691.6,0.0005452,120]
[331514278,1720445280413,-972.54,0.0005452,120]
[331514279,1720445280519,-500.0,0.0005452,120]
[331514280,1720445280621,-1198.2,0.0005452,120]
[331514281,1720445280715,-992.98,0.0005452,120]
[331514282,1720445280808,-542.92,0.0005452,120]
[331514283,1720445280902,-1035.8,0.0005452,120]
[331514284,1720445280997,-3821.85,0.0005452,120]
[331514285,1720445281095,-971.56,0.0005452,120]
[331514286,1720445281194,-587.73,0.0005452,120]
[331514287,1720445281295,-1317.09,0.0005452,120]
[331514288,1720445281400,-1389.08,0.0005452,120]
[331514289,1720445281493,-1639.49,0.0005452,120]
[331514290,1720445281585,-867.82,0.0005452,120]
[331514291,1720445281679,-500.0,0.0005452,120]
[331514292,1720445281773,-615.39,0.0005452,120]
[331514293,1720445281862,-2430.97,0.0005452,120]
[331514294,1720445281949,-500.0,0.0005452,120]
[331514295,1720445282042,-500.0,0.0005452,120]
[331514296,1720445282135,-2066.55,0.0005452,120]
[331514297,1720445282225,-921.41,0.0005452,120]
[331514298,1720445282316,-548.85,0.0005452,120]
[331514299,1720445282407,-1045.8,0.0005452,120]
[331514300,1720445282497,-2785.91,0.0005452,120]
[331514301,1720445282586,-3346.99,0.0005452,120]
[331514302,1720445282677,-613.69,0.0005452,120]
[331514303,1720445282769,-2884.68,0.0005452,120]
[331514304,1720445282858,-1223.29,0.0005452,120]
[331514305,1720445282947,-521.67,0.0005452,120]
[331514306,1720445283038,-1430.22,0.0005452,120]
[331514307,1720445283141,-611.61,0.0005452,120]
[331514308,1720445283249,-1451.36,0.0005452,120]
[331514309,1720445283353,-729.84,0.0005452,120]
[331514310,1720445283454,-919.43,0.0005452,120]
[331514311,1720445283554,-1252.38,0.0005452,120]
[331514312,1720445283650,-902.66,0.0005452,120]
[331514313,1720445283747,-1130.53,0.0005452,120]
[331514314,1720445283845,-1710.79,0.0005452,120]
[331514315,1720445283940,-1387.34,0.0005452,120]
[331514316,1720445284035,-558.45,0.0005452,120]
[331514317,1720445284133,-595.41,0.0005452,120]
[331514318,1720445284230,-801.29,0.0005452,120]
[331514319,1720445284328,-681.95,0.0005452,120]
[331514320,1720445284424,-647.19,0.0005452,120]
[331514321,1720445284516,-485.39790136,0.0005452,120]
[331514322,1720445284610,-500.0,0.0005452,120]
[331514323,1720445284707,-920.91,0.0005452,120]
[331514324,1720445284802,-809.57,0.0005452,120]
[331514325,1720445284897,-866.07,0.0005452,120]
[331514326,1720445285206,-508.51,0.0005452,120]
[331514327,1720445285301,-1342.46,0.0005452,120]
[331514328,1720445285399,-669.08,0.0005452,120]
[331514329,1720445285497,-924.87,0.0005452,120]
[331514330,1720445285597,-1526.59,0.0005452,120]
[331514331,1720445285695,-2651.63,0.0005452,120]
[331514332,1720445285793,-500.0,0.0005452,120]
[331514333,1720445285891,-2744.63,0.0005452,120]
[331514334,1720445285988,-2267.0,0.0005452,120]
[331514335,1720445286085,-574.0,0.0005452,120]
[331514336,1720445286181,-775.01,0.0005452,120]
[331514337,1720445286282,-1695.04,0.0005452,120]
[331514338,1720445286383,-500.0,0.0005452,120]
[331514339,1720445286488,-1245.56,0.0005452,120]
[331514340,1720445286594,-785.15,0.0005452,120]
[331514341,1720445286687,-1245.98,0.0005452,120]
[331514342,1720445286786,-1155.34,0.0005452,120]
[331514343,1720445286882,-555.03,0.0005452,120]
[331514344,1720445286976,-803.39,0.0005452,120]
[331514345,1720445287070,-1305.54,0.0005452,120]
[331514346,1720445287162,-949.65,0.0005452,120]
[331514347,1720445287255,-500.0,0.0005452,120]
[331514348,1720445287345,-641.23342731,0.0005452,120]
[331514349,1720445287437,-1347.23,0.0005452,120]
[331514350,1720445287527,-568.39,0.0005452,120]
[331514351,1720445287617,-784.35,0.0005452,120]
[331514352,1720445287710,-796.74,0.0005452,120]
[331514353,1720445287800,-838.64,0.0005452,120]
[331514354,1720445287890,-466.40154299,0.0005452,120]
[331514355,1720445287987,-739.18,0.0005452,120]
[331514356,1720445288079,-995.21,0.0005452,120]
[331514357,1720445288185,-1155.36,0.0005452,120]
[331514358,1720445288292,-751.81,0.0005452,120]
[331514359,1720445288392,-1142.72,0.0005452,120]
[331514360,1720445288497,-2126.32,0.0005452,120]
[331514361,1720445288594,-1163.78,0.0005452,120]
[331514362,1720445288690,-743.53,0.0005452,120]
[331514363,1720445288789,-934.66,0.0005452,120]
[331514364,1720445288882,-995.22,0.0005452,120]
[331514365,1720445288975,-784.36,0.0005452,120]
[331514366,1720445289063,-1579.18,0.0005452,120]
[331514367,1720445289157,-500.0,0.0005452,120]
[331514368,1720445289249,-1658.26,0.0005452,120]
[331514369,1720445289346,-500.0,0.0005452,120]
[331514370,1720445289439,-580.63,0.0005452,120]
[331514371,1720445289529,-693.77,0.0005452,120]
[331514372,1720445289620,-633.12,0.0005452,120]
[331514373,1720445289716,-1079.99,0.0005452,120]
[331514374,1720445289811,-510.79,0.0005452,120]
[331514375,1720445289904,-500.0,0.0005452,120]
[331514376,1720445289999,-534.95,0.0005452,120]
[331514377,1720445290093,-652.14,0.0005452,120]
[331514378,1720445290192,-2055.98,0.0005452,120]
[331514379,1720445290289,-808.16,0.0005452,120]
[331514380,1720445290386,-837.72,0.0005452,120]
[331514381,1720445290477,-974.55,0.0005452,120]
[331514382,1720445290573,-302.01396428,0.0005452,120]
[331514383,1720445290670,-668.71,0.0005452,120]
[331514384,1720445290761,-918.92,0.0005452,120]
[331514385,1720445290852,-733.46,0.0005452,120]
[331514386,1720445290944,-525.4432583,0.0005452,120]
[331514387,1720445291038,-777.5,0.0005452,120]
[331514388,1720445291133,-843.38,0.0005452,120]
[331514389,1720445291230,-469.80835388,0.0005452,120]
[331514390,1720445291323,-852.37,0.0005452,120]
[331514391,1720445291418,-1186.97,0.0005452,120]
[331514392,1720445291509,-1241.83,0.0005452,120]
[331514393,1720445291595,-807.64,0.0005452,120]
[331514394,1720445291680,-803.38,0.0005452,120]
[331514395,1720445291766,-1355.78,0.0005452,120]
[331514396,1720445291849,-657.3,0.0005452,120]
[331514397,1720445291936,-500.0,0.0005452,120]
[331514398,1720445292023,-500.0,0.0005452,120]
[331514399,1720445292110,-317.94900814,0.0005452,120]
[331514400,1720445292196,-500.0,0.0005452,120]
[331514401,1720445292283,-500.0,0.0005452,120]
[331514402,1720445292369,-525.31,0.0005452,120]
[331514403,1720445292458,-682.0,0.0005452,120]
[331514404,1720445292544,-1095.38,0.0005452,120]
[331514405,1720445292633,-1081.98,0.0005452,120]
[331514406,1720445292719,-712.75,0.0005452,120]
[331514407,1720445292808,-766.48,0.0005452,120]
[331514408,1720445292897,-887.36,0.0005452,120]
[331514409,1720445292987,-989.73,0.0005452,120]
[331514410,1720445293077,-568.6,0.0005452,120]
[331514411,1720445293181,-665.12,0.0005452,120]
[331514412,1720445293282,-785.44,0.0005452,120]
[331514413,1720445293378,-2486.56,0.0005452,120]
[331514414,1720445293469,-305.60618519,0.0005452,120]
[331514415,1720445293558,-891.8,0.0005452,120]
[331514416,1720445293651,-198.45692505,0.0005452,120]
[331514417,1720445293745,-608.44,0.0005452,120]
[331514418,1720445293838,-705.57,0.0005452,120]
[331514419,1720445293928,-502.79,0.0005452,120]
[331514420,1720445294018,-500.0,0.0005452,120]
[331514421,1720445294106,-605.18,0.0005452,120]
[331514422,1720445294198,-500.0,0.0005452,120]
[331514423,1720445294290,-500.0,0.0005452,120]
[331514424,1720445294389,-500.0,0.0005452,120]
[331514425,1720445294489,-534.72,0.0005452,120]
[331514426,1720445294591,-712.81,0.0005452,120]
[331514427,1720445294690,-1760.36,0.0005452,120]
[331514428,1720445294790,-800.08,0.0005452,120]
[331514429,1720445294888,-894.69,0.0005452,120]
[331514430,1720445295168,-723.54,0.0005452,120]
[331514431,1720445295269,-530.59,0.0005452,120]
[331514432,1720445295367,-839.95,0.0005452,120]
[331514433,1720445295463,-511.1,0.0005452,120]
[331514434,1720445295563,-760.52,0.0005452,120]
[331514435,1720445295666,-866.49,0.0005452,120]
[331514436,1720445295764,-500.0,0.0005452,120]
[331514437,1720445295863,-893.31,0.0005452,120]
[331514438,1720445295969,-500.0,0.0005452,120]
[331514439,1720445296085,-500.0,0.0005452,120]
[331514440,1720445296196,-1290.88,0.0005452,120]
[331514441,1720445296303,-585.61,0.0005452,120]
[331514442,1720445296410,-574.25,0.0005452,120]
[331514443,1720445296519,-500.0,0.0005452,120]
[331514444,1720445296627,-891.99,0.0005452,120]
[331514445,1720445296734,-518.21,0.0005452,120]
[331514446,1720445296841,-500.0,0.0005452,120]
[331514447,1720445296949,-973.06,0.0005452,120]
[331514448,1720445297049,-1101.05,0.0005452,120]
[331514449,1720445297151,-1143.52,0.0005452,120]
[331514450,1720445297249,-589.06,0.0005452,120]
[331514451,1720445297346,-729.17,0.0005452,120]
[331514452,1720445297441,-765.16,0.0005452,120]
[331514453,1720445297537,-538.46,0.0005452,120]
[331514454,1720445297637,-500.0,0.0005452,120]
[331514455,1720445297730,-577.54,0.0005452,120]
[331514456,1720445297824,-987.37,0.0005452,120]
[331514457,1720445297919,-449.04511395,0.0005452,120]
[331514458,1720445298013,-707.5,0.0005452,120]
[331514459,1720445298113,-943.37,0.0005452,120]
[331514460,1720445298223,-584.78,0.0005452,120]
[331514461,1720445298330,-558.55,0.0005452,120]
[331514462,1720445298428,-718.31,0.0005452,120]
[331514463,1720445298526,-511.83,0.0005452,120]
[331514464,1720445298630,-588.46,0.0005452,120]
[331514465,1720445298732,-725.12,0.0005452,120]
[331514466,1720445298839,-1169.96,0.0005452,120]
[331514467,1720445298938,-510.12,0.0005452,120]
[331514468,1720445299039,-691.49,0.0005452,120]
[331514469,1720445299140,-587.863739,0.0005452,120]
[331514470,1720445299240,-500.0,0.0005452,120]
[331514471,1720445299345,-500.0,0.0005452,120]
[331514472,1720445299448,-500.0,0.0005452,120]
[331514473,1720445299547,-736.89,0.0005452,120]
[331514474,1720445299652,-500.0,0.0005452,120]
[331514475,1720445299753,-561.83,0.0005452,120]
[331514476,1720445299853,-500.0,0.0005452,120]
[331514477,1720445299954,-757.16,0.0005452,120]
[331514478,1720445300058,-519.91,0.0005452,120]
[331514479,1720445300157,-747.04,0.0005452,120]
[331514480,1720445300252,-613.38,0.0005452,30]
[331514481,1720445300347,-552.79,0.0005452,120]
[331514482,1720445300443,-591.58,0.0005452,120]
[331514483,1720445300539,-1172.19,0.0005452,120]
[331514484,1720445300642,-500.0,0.0005452,120]
[331514485,1720445300740,-1249.26,0.0005452,120]
[331514486,1720445300839,-557.8,0.0005452,120]
[331514487,1720445300939,-800.07,0.0005452,120]
[331514488,1720445301037,-807.07,0.0005452,120]
[331514489,1720445301134,-967.69,0.0005452,120]
[331514490,1720445301234,-1110.78,0.0005452,120]
[331514491,1720445301338,-593.07,0.0005452,120]
[331514492,1720445301444,-666.97,0.0005452,120]
[331514493,1720445301553,-663.11,0.0005452,120]
[331514494,1720445301655,-586.75,0.0005452,120]
[331514495,1720445301755,-500.0,0.0005452,120]
[331514496,1720445301851,-594.57,0.0005452,120]
[331514497,1720445301945,-500.0,0.0005452,120]